bitfinex-derivatives/quotes_SOLF0:USTF0_20250609
["timestamp","ask_amount","ask_price","bid_price","bid_amount"]
[1749502562909,6.3881,156.46,156.43,6.3889]
[1749502563105,11.52755222,156.45,156.43,6.43315577]
[1749502563409,6.3883,156.45,156.43,6.43315577]
[1749502564816,6.3883,156.45,156.43,0.04425577]
[1749502565808,0.04258888,156.46,156.43,6.43325577]
[1749502566004,5.13950768,156.45,156.43,6.43325577]
[1749502566205,5.13950768,156.44,156.43,6.43325577]
[1749502566912,6.3883,156.45,156.43,6.43325577]
[1749502567706,6.3883,156.45,156.43,0.04425577]
[1749502567910,6.3887,156.44,156.43,0.04425577]
[1749502568112,0.04258888,156.46,156.43,0.04425577]
[1749502568312,5.13313466,156.45,156.43,0.04425577]
[1749502568611,6.3885,156.45,156.43,0.04425577]
[1749502569206,6.3885,156.45,156.43,6.43325577]
[1749502569908,6.3887,156.44,156.43,0.04425577]
[1749502570107,11.52208689,156.44,156.43,0.04425577]
[1749502571222,5.13338689,156.44,156.43,0.04425577]
[1749502571725,8.5878,156.45,156.43,0.04425577]
[1749502571925,6.3885,156.45,156.43,6.43335577]
[1749502575726,0.04258888,156.46,156.43,7.63831118]
[1749502576222,5.13095646,156.45,156.44,6.3887]
[1749502576618,0.04258888,156.46,156.43,7.63831118]
[1749502576819,0.04258888,156.46,156.45,7.59405541]
[1749502577126,0.04258888,156.46,156.45,45.86235541]
[1749502577828,12.35767622,156.52,156.49,6.3864]
[1749502578027,5.13091958,156.51,156.49,6.3864]
[1749502578320,5.13091958,156.5,156.45,31.88]
[1749502578530,5.13056129,156.49,156.45,31.88]
[1749502578718,0.04510474,156.49,156.47,7.59405541]
[1749502579727,0.04510474,156.49,156.48,6.3871]
[1749502583230,0.04510474,156.49,156.46,0.04350556]
[1749502583433,0.04510474,156.49,156.46,7.63756097]
[1749502583731,0.04510474,156.49,156.47,6.3873]
[1749502584236,0.04510474,156.49,156.46,7.63756097]
[1749502585730,0.04510474,156.49,156.48,6.3871]
[1749502593239,0.04510474,156.49,156.48,11.24533006]
[1749502594838,0.04510474,156.49,156.48,6.3871]
[1749502595239,0.04510474,156.49,156.47,11.24543006]
[1749502595540,0.04510474,156.49,156.47,6.3872]
[1749502595738,0.04510474,156.49,156.47,4.85823006]
[1749502595938,4.9033348,156.49,156.46,4.90173562]
[1749502596537,4.85823006,156.48,156.46,0.04350556]
[1749502596744,6.3875,156.47,156.46,0.04350556]
[1749502597642,11.24573006,156.47,156.46,0.04350556]
[1749502597832,16.38865668,156.47,156.46,0.04350556]
[1749502601246,11.53042662,156.47,156.46,0.04350556]
[1749502616853,11.51615294,156.47,156.46,0.04350556]
[1749502618048,6.3889,156.44,156.42,45.88437669]
[1749502619254,6.42950274,156.45,156.43,6.389]
[1749502620552,6.3886,156.44,156.42,38.2893]
[1749502621262,6.3886,156.44,156.42,43.14998889]
[1749502621751,6.42950274,156.45,156.42,43.14998889]
[1749502622361,6.42950274,156.45,156.43,6.3889]
[1749502622562,6.42950274,156.45,156.43,11.24958889]
[1749502622762,0.04110274,156.45,156.44,4.86068889]
[1749502623662,0.04110274,156.45,156.43,4.86068889]
[1749502623862,0.04110274,156.45,156.42,36.76068889]
[1749502624064,6.3886,156.44,156.42,43.14988889]
[1749502624365,0.04110274,156.45,156.42,36.76068889]
[1749502624562,6.42950274,156.45,156.43,6.3888]
[1749502626266,6.42950274,156.45,156.42,43.14988889]
[1749502626566,6.42950274,156.45,156.42,36.76068889]
[1749502627174,6.42950274,156.45,156.43,6.3888]
[1749502628475,0.04110274,156.45,156.44,6.3886]
[1749502628675,0.04110274,156.45,156.44,11.24928889]
[1749502632081,0.04110274,156.45,156.44,6.3886]
[1749502636382,5.18187394,156.45,156.44,6.3886]
[1749502636584,0.04110274,156.45,156.44,6.3886]
[1749502636983,5.18199852,156.45,156.44,6.3886]
[1749502637675,11.57019852,156.45,156.44,6.3886]
[1749502638885,5.18199852,156.45,156.44,6.3886]
[1749502640984,11.57019852,156.45,156.43,6.3889]
[1749502641187,5.14821469,156.44,156.42,31.9]
[1749502641389,0.04110274,156.45,156.42,31.9]
[1749502641587,5.14960496,156.44,156.42,31.9]
[1749502641793,6.3888,156.44,156.42,43.14998889]
[1749502643185,6.42950274,156.45,156.43,6.389]
[1749502643380,5.1690003,156.44,156.43,6.389]
[1749502643584,5.1690003,156.44,156.43,11.24968889]
[1749502656195,5.96668685,156.5,156.43,4.86068889]
[1749502656500,5.96668685,156.51,156.48,4.86068889]
[1749502657000,6.3861,156.51,156.48,11.24758889]
[1749502657200,6.43149925,156.51,156.48,11.29590469]
[1749502657402,11.29218814,156.51,156.48,11.29590469]
[1749502657702,6.43149925,156.51,156.48,11.29590469]
[1749502657892,11.29218814,156.51,156.48,11.29590469]
[1749502658093,6.3863,156.5,156.48,11.29590469]
[1749502660809,11.29208814,156.51,156.48,11.29590469]
[1749502661801,0.04539925,156.51,156.48,4.90900469]
[1749502663705,6.43129925,156.51,156.49,6.3864]
[1749502668306,5.25303563,156.5,156.49,6.3864]
[1749502669003,5.25303563,156.5,156.48,11.29600469]
[1749502669203,11.29198814,156.51,156.48,11.29600469]
[1749502669403,5.25264427,156.5,156.48,11.29600469]
[1749502669708,11.29198814,156.51,156.48,11.29600469]
[1749502669906,5.25228425,156.5,156.48,11.29600469]
[1749502670208,11.29198814,156.51,156.48,11.29600469]
[1749502670400,5.25228425,156.5,156.48,11.29600469]
[1749502670598,11.29198814,156.51,156.48,11.29600469]
[1749502670801,5.2520137,156.5,156.48,11.29600469]
[1749502671096,11.29198814,156.51,156.48,11.29600469]
[1749502671297,5.2520137,156.5,156.48,11.29600469]
[1749502671498,11.29198814,156.51,156.48,11.29600469]
[1749502671702,5.2520137,156.5,156.48,11.29600469]
[1749502671900,11.29198814,156.51,156.48,11.29600469]
[1749502672102,5.25448932,156.5,156.49,6.3867]
[1749502672306,5.25448932,156.5,156.48,4.90900469]
[1749502672609,11.29198814,156.51,156.48,11.29580469]
[1749502672810,5.2546091,156.5,156.48,11.29580469]
[1749502673010,11.29198814,156.51,156.48,11.29580469]
[1749502673214,5.2546091,156.5,156.48,11.29580469]
[1749502673417,11.29198814,156.51,156.48,11.29580469]
[1749502673618,5.25457828,156.5,156.48,11.29580469]
[1749502673809,11.29198814,156.51,156.48,11.29580469]
[1749502674010,5.25434433,156.5,156.48,11.29580469]
[1749502674214,11.29198814,156.51,156.48,11.29580469]
[1749502674514,5.25437516,156.5,156.48,11.29580469]
[1749502674715,11.29198814,156.51,156.48,11.29580469]
[1749502675016,5.25426197,156.5,156.48,11.29580469]
[1749502675314,11.29198814,156.51,156.48,11.29580469]
[1749502675509,5.25426197,156.5,156.48,11.29580469]
[1749502675813,11.29198814,156.51,156.48,11.29580469]
[1749502676014,5.25413407,156.5,156.48,11.29580469]
[1749502676214,11.29198814,156.51,156.48,11.29580469]
[1749502676415,5.25413407,156.5,156.48,11.29580469]
[1749502676616,11.29198814,156.51,156.48,11.29580469]
[1749502676817,5.25410074,156.5,156.48,11.29580469]
[1749502677016,11.29198814,156.51,156.49,6.3867]
[1749502677317,5.2540986,156.5,156.49,6.3867]
[1749502678221,11.6403986,156.5,156.48,11.29600469]
[1749502678419,6.3863,156.5,156.48,11.29600469]
[1749502679519,4.90608814,156.51,156.48,4.90900469]
[1749502679721,5.25390818,156.5,156.48,4.90900469]
[1749502679921,4.90608814,156.51,156.48,4.90900469]
[1749502680222,11.64025134,156.5,156.48,11.29580469]
[1749502680522,6.3863,156.5,156.48,11.29580469]
[1749502682624,11.29218814,156.51,156.48,11.29580469]
[1749502682818,5.25424627,156.5,156.49,6.3867]
[1749502683719,11.64054627,156.5,156.48,11.29590469]
[1749502683918,6.3863,156.5,156.48,11.29590469]
[1749502686626,5.25548221,156.49,156.48,11.29590469]
[1749502702345,0.04539925,156.51,156.5,6.3863]
[1749502702638,5.31203768,156.51,156.5,42.62698889]
[1749502704944,5.96668685,156.55,156.5,36.24068889]
[1749502705146,5.96668685,156.55,156.54,4.86068889]
[1749502705447,5.96668685,156.55,156.51,6.3856]
[1749502705633,5.96668685,156.55,156.53,4.86068889]
[1749502706540,6.3847,156.54,156.53,4.86068889]
[1749502707140,10.87340424,156.56,156.53,4.86068889]
[1749502707646,6.3851,156.53,156.52,0.04654346]
[1749502707838,11.24578889,156.53,156.52,0.04654346]
[1749502708547,6.3859,156.51,156.5,31.38]
[1749502708749,4.86068889,156.52,156.48,4.86068889]
[1749502709550,6.3867,156.49,156.48,4.90744147]
[1749502710246,6.3867,156.49,156.48,0.04675258]
[1749502716858,11.61104142,156.49,156.48,0.04675258]
[1749502718562,16.47173031,156.49,156.48,0.04675258]
[1749502724265,11.24738889,156.49,156.48,0.04675258]
[1749502730667,6.3867,156.49,156.48,5.258e-05]
[1749502730969,11.24738889,156.49,156.48,5.258e-05]
[1749502731166,6.3867,156.49,156.48,5.258e-05]
[1749502733270,11.24738889,156.49,156.48,5.258e-05]
[1749502736769,16.46843294,156.49,156.48,5.258e-05]
[1749502738875,5.22104405,156.49,156.48,6.38715258]
[1749502739074,5.22104405,156.49,156.48,11.24784147]
[1749502739379,5.21781983,156.51,156.48,4.86074147]
[1749502739572,0.04466924,156.52,156.5,4.86068889]
[1749502739770,5.21796925,156.51,156.5,4.86068889]
[1749502740671,5.21796925,156.51,156.5,11.24668889]
[1749502741666,0.04466924,156.52,156.5,11.24668889]
[1749502741866,5.22872523,156.51,156.5,11.24668889]
[1749502744279,0.04466924,156.52,156.5,11.24668889]
[1749502744880,5.2284737,156.51,156.5,11.24668889]
[1749502745378,5.22827326,156.51,156.5,11.24668889]
[1749502745679,0.04466924,156.52,156.5,11.24668889]
[1749502745880,6.43026924,156.52,156.5,11.24668889]
[1749502746682,5.23491477,156.51,156.5,11.24668889]
[1749502746982,6.43026924,156.52,156.5,11.24668889]
[1749502747484,0.04466924,156.52,156.51,6.3859]
[1749502747775,5.27937025,156.52,156.51,6.3859]
[1749502747979,0.04466924,156.52,156.51,11.24658889]
[1749502754082,5.23712192,156.55,156.54,6.3847]
[1749502754278,8.6435,156.58,156.54,4.86068889]
[1749502754489,5.23665799,156.57,156.55,4.86068889]
[1749502754688,5.23665799,156.56,156.55,4.86068889]
[1749502755486,5.23665799,156.56,156.55,11.24458889]
[1749502757287,0.04037682,156.57,156.55,11.24458889]
[1749502757486,0.04037682,156.57,156.56,4.86068889]
[1749502757689,5.28172512,156.57,156.56,4.86068889]
[1749502762488,5.28172512,156.57,156.56,11.24458889]
[1749502763190,0.04037682,156.57,156.56,11.24458889]
[1749502765089,5.96427368,156.64,156.56,4.86068889]
[1749502765294,5.23735383,156.63,156.55,6.5713]
[1749502765492,5.23746876,156.62,156.55,6.5713]
[1749502765691,5.23746876,156.64,156.55,6.5713]
[1749502765885,16.47945765,156.63,156.6,4.86068889]
[1749502766086,10.09815765,156.62,156.6,0.04310939]
[1749502766290,11.61926876,156.61,156.6,0.04310939]
[1749502766490,5.23746876,156.61,156.6,0.04310939]
[1749502766693,4.86068889,156.61,156.6,0.04310939]
[1749502766895,10.09815765,156.61,156.6,0.04310939]
[1749502767088,11.61926876,156.61,156.6,0.04310939]
[1749502767284,16.47995765,156.61,156.6,0.04310939]
[1749502768296,11.61926876,156.61,156.6,0.04310939]
[1749502768498,16.47995765,156.61,156.6,0.04310939]
[1749502770591,10.09815765,156.61,156.56,33.0]
[1749502770800,4.86068889,156.58,156.54,11.24508889]
[1749502770995,4.86068889,156.58,156.54,6.3844]
[1749502771196,10.09815765,156.58,156.54,11.24508889]
[1749502771388,4.86068889,156.58,156.54,6.3844]
[1749502771594,4.86068889,156.57,156.54,4.90413702]
[1749502771996,11.24448889,156.57,156.54,4.90413702]
[1749502772594,11.24458889,156.56,156.54,0.04344813]
[1749502773806,6.3836,156.57,156.54,6.42804813]
[1749502773997,16.43870371,156.57,156.54,6.42804813]
[1749502774201,11.24428889,156.57,156.54,6.42804813]
[1749502774602,11.24428889,156.57,156.54,0.04344813]
[1749502775506,6.3839,156.56,156.54,0.04344813]
[1749502776104,11.24458889,156.56,156.54,0.04344813]
[1749502776604,6.3839,156.56,156.54,0.04344813]
[1749502776804,11.24458889,156.56,156.54,0.04344813]
[1749502778103,4.86068889,156.56,156.54,6.42804813]
[1749502778304,4.86068889,156.56,156.54,0.04344813]
[1749502778503,11.24458889,156.56,156.54,0.04344813]
[1749502779098,6.3839,156.56,156.54,0.04344813]
[1749502780110,11.24458889,156.56,156.54,0.04344813]
[1749502780306,4.86068889,156.56,156.54,0.04344813]
[1749502780707,10.0477002,156.56,156.54,0.04344813]
[1749502781009,4.86068889,156.56,156.54,0.04344813]
[1749502781210,4.86068889,156.56,156.54,6.42784813]
[1749502781809,11.24488889,156.56,156.54,6.42804813]
[1749502782012,4.86068889,156.56,156.54,0.04344813]
[1749502782509,11.24478889,156.56,156.54,0.04344813]
[1749502783103,11.24478889,156.56,156.54,6.42804813]
[1749502784307,5.19430667,156.55,156.54,6.42804813]
[1749502785414,5.19430667,156.55,156.54,0.04344813]
[1749502788904,4.5282439,156.55,156.54,0.04344813]
[1749502789307,10.9125439,156.55,156.54,0.04344813]
[1749502790212,6.3853,156.53,156.49,37.86068889]
[1749502790411,4.86068889,156.53,156.49,33.0]
[1749502790613,6.3857,156.52,156.49,44.24718889]
[1749502791214,6.3859,156.51,156.49,44.2960309]
[1749502791518,4.90379184,156.52,156.5,6.3863]
[1749502792815,11.28939184,156.52,156.5,6.3863]
[1749502793014,4.90379184,156.52,156.49,39.43544201]
[1749502793215,6.3859,156.51,156.49,44.2961309]
[1749502793415,0.04310295,156.52,156.49,44.2961309]
[1749502793719,4.90379184,156.52,156.49,44.2961309]
[1749502794019,11.28949184,156.52,156.49,44.2961309]
[1749502794217,11.28949184,156.52,156.49,39.43544201]
[1749502795320,6.3859,156.51,156.49,39.43544201]
[1749502795819,6.3863,156.5,156.49,0.04884201]
[1749502796020,11.24698889,156.5,156.49,0.04884201]
[1749502796219,6.3863,156.5,156.49,0.04884201]
[1749502797622,11.24678889,156.51,156.49,0.04884201]
[1749502798917,6.3863,156.5,156.49,0.04884201]
[1749502800925,11.5635985,156.5,156.49,0.04884201]
[1749502801226,6.3863,156.5,156.49,0.04884201]
[1749502801622,11.24668889,156.51,156.49,0.04884201]
[1749502803429,11.24668889,156.51,156.49,6.43544201]
[1749502805826,4.86068889,156.51,156.5,6.3861]
[1749502806027,4.90379184,156.52,156.5,6.3861]
[1749502806324,4.90379184,156.52,156.49,4.9095309]
[1749502806325,0.04310295,156.52,156.51,6.3859]
[1749502806526,0.04310295,156.52,156.51,11.24658889]
[1749502807627,0.04310295,156.52,156.51,6.3859]
[1749502807829,0.04310295,156.52,156.51,11.24658889]
[1749502808728,4.86068889,156.57,156.51,4.86068889]
[1749502808934,16.40672486,156.56,156.53,4.86068889]
[1749502809127,11.24458889,156.56,156.53,11.24538889]
[1749502809323,11.24458889,156.56,156.53,4.86068889]
[1749502809524,11.2888295,156.56,156.53,4.90272933]
[1749502810338,4.9049295,156.56,156.54,6.3844]
[1749502810634,10.06520355,156.56,156.54,6.3844]
[1749502811331,5.20451466,156.56,156.54,11.24508889]
[1749502811628,0.04424061,156.56,156.55,6.3843]
[1749502811836,0.04424061,156.56,156.55,11.24498889]
[1749502815332,0.04424061,156.56,156.55,13.96416916]
[1749502816633,4.061e-05,156.56,156.55,13.96416916]
[1749502817229,4.061e-05,156.56,156.55,6.3843]
[1749502817432,4.061e-05,156.56,156.55,13.96416916]
[1749502832749,4.061e-05,156.56,156.55,6.3843]
[1749502833051,4.061e-05,156.56,156.55,13.96416916]
[1749502837254,4.061e-05,156.56,156.55,11.23616568]
[1749502839556,5.1642093,156.62,156.6,6.3821]
[1749502841355,4.52106354,156.63,156.61,4.85186568]
[1749502841656,9.70260075,156.63,156.62,4.85186568]
[1749502841854,9.70260075,156.63,156.62,11.23326568]
[1749502842254,9.70260075,156.63,156.62,6.3814]
[1749502843261,7.51120075,156.63,156.62,6.3814]
[1749502843554,7.51120075,156.63,156.62,11.23326568]
[1749502843555,2.32966354,156.63,156.62,11.23326568]
[1749502844857,0.04426354,156.63,156.62,11.23326568]
[1749502847257,143.08074902,156.63,156.51,33.44]
[1749502847454,4.85327286,156.54,156.51,33.44]
[1749502847653,4.85327286,156.56,156.52,4.85327286]
[1749502847961,2.1819,156.55,156.53,4.85327286]
[1749502848149,2.1819,156.55,156.54,4.85327286]
[1749502848352,2.1819,156.55,156.54,372.43327286]
[1749502849360,2.1819,156.55,156.54,367.58]
[1749502851060,8.5662,156.55,156.54,367.58]
[1749502852758,13.74877197,156.55,156.54,367.58]
[1749502852961,8.5662,156.55,156.54,367.58]
[1749502853263,13.74970095,156.55,156.54,367.58]
[1749502853663,11.56780095,156.55,156.54,367.58]
[1749502854166,5.18349454,156.55,156.54,367.58]
[1749502854665,6.42931655,156.56,156.54,367.58]
[1749502854865,5.18397826,156.55,156.54,367.58]
[1749502855061,5.18397826,156.55,156.54,401.02]
[1749502855259,0.04531655,156.56,156.54,401.02]
[1749502855461,5.18452586,156.55,156.54,401.02]
[1749502856361,0.04531655,156.56,156.54,401.02]
[1749502856766,6.42921655,156.56,156.54,401.02]
[1749502857266,0.04531655,156.56,156.54,407.4047]
[1749502861065,0.04531655,156.56,156.55,6.3843]
[1749502861465,0.04531655,156.56,156.54,408.60486749]
[1749502862072,0.04531655,156.56,156.55,6.3843]
[1749502868574,2.178,156.6,156.59,6.3826]
[1749502868775,7.28489071,156.6,156.59,40.0026]
[1749502869171,2.178,156.6,156.59,47.58746749]
[1749502869369,2.1622,156.62,156.6,6.3819]
[1749502869670,5.10637529,156.61,156.59,33.66793765]
[1749502869875,8.5437,156.62,156.59,40.05033765]
[1749502870073,5.10640542,156.61,156.59,40.05033765]
[1749502870375,2.1622,156.62,156.6,6.3819]
[1749502870576,5.10610423,156.61,156.6,6.3819]
[1749502870780,2.1622,156.62,156.6,6.3819]
[1749502871270,0.04317046,156.63,156.61,6.3815]
[1749502871773,0.04317046,156.63,156.6,6.3822]
[1749502872073,0.04317046,156.63,156.59,41.25280514]
[1749502872275,0.04317046,156.63,156.61,6.3815]
[1749502875482,0.04317046,156.63,156.62,6.3814]
[1749502881988,0.04317046,156.63,156.61,6.3816]
[1749502882489,0.04317046,156.63,156.6,7.58486749]
[1749502882490,0.04317046,156.63,156.59,41.25280514]
[1749502882684,0.04317046,156.63,156.59,47.63500514]
[1749502882880,6.42437046,156.63,156.59,41.25280514]
[1749502883081,0.04317046,156.63,156.61,6.3818]
[1749502884082,0.04317046,156.63,156.62,6.3814]
[1749502894303,0.04317046,156.63,156.62,13.96626749]
[1749502894695,0.04317046,156.63,156.62,6.3814]
[1749502895207,0.04317046,156.63,156.62,11.23115727]
[1749502896311,0.04317046,156.63,156.62,6.3814]
[1749502896500,0.04317046,156.63,156.62,11.23115727]
[1749502896701,0.04317046,156.63,156.62,6.3814]
[1749502896902,0.04317046,156.63,156.62,11.23115727]
[1749502899206,0.04317046,156.63,156.62,13.95616937]
[1749502899711,2.73711092,156.65,156.64,6.3806]
[1749502899909,2.73711092,156.65,156.64,47.51536937]
[1749502901909,2.73711092,156.65,156.64,39.9406]
[1749502905408,2.73711092,156.65,156.64,47.51536937]
[1749502908516,2.73711092,156.65,156.64,39.9406]
[1749502908719,2.73711092,156.65,156.64,47.51536937]
[1749502912816,13.52888505,156.74,156.64,41.13476937]
[1749502913020,5.09235395,156.73,156.68,7.57476937]
[1749502913222,11.46985395,156.72,156.69,33.54]
[1749502913422,5.09235395,156.71,156.69,39.9182]
[1749502913722,5.09235395,156.7,156.69,39.9182]
[1749502914418,0.04139801,156.71,156.7,6.3782]
[1749502914618,5.13339532,156.71,156.7,6.3782]
[1749502915815,5.13339532,156.71,156.69,39.9184]
[1749502916117,0.04139801,156.71,156.69,33.54]
[1749502916317,6.5991,156.75,156.7,375.01476937]
[1749502916526,6.5991,156.75,156.72,7.57476937]
[1749502916718,6.5991,156.75,156.73,33.54]
[1749502916719,8.6454,156.75,156.73,33.54]
[1749502917022,2.2691,156.75,156.73,33.54]
[1749502918616,0.04706975,156.76,156.74,7.57476937]
[1749502919222,0.04706975,156.76,156.75,6.3761]
[1749502921123,0.04706975,156.76,156.73,33.54]
[1749502921621,0.04706975,156.76,156.75,7.57476937]
[1749502921822,0.04706975,156.76,156.75,13.95086937]
[1749502922926,0.04706975,156.76,156.75,6.3761]
[1749502924426,0.04706975,156.76,156.73,41.11476937]
[1749502924621,0.04706975,156.76,156.75,7.57476937]
[1749502924822,6.975e-05,156.76,156.75,13.95086937]
[1749502925026,11.78886937,156.85,156.75,7.57476937]
[1749502925223,11.78886937,156.85,156.73,33.54]
[1749502925418,6.3728,156.84,156.78,7.57476937]
[1749502925624,4.2141,156.85,156.79,33.76]
[1749502925825,7.57476937,156.84,156.8,33.76]
[1749502926227,7.60351823,156.84,156.8,33.8009853]
[1749502926421,0.02874886,156.84,156.8,33.8009853]
[1749502926629,7.60351823,156.84,156.8,33.8009853]
[1749502927030,6.3737,156.81,156.8,33.8009853]
[1749502928233,6.3733,156.82,156.8,33.8009853]
[1749502928428,0.02874886,156.84,156.8,33.8009853]
[1749502928629,0.02874886,156.84,156.81,7.57476937]
[1749502928833,0.02874886,156.84,156.82,6.373]
[1749502929632,0.02874886,156.84,156.83,6.3729]
[1749502930028,0.02874886,156.84,156.8,401.0609853]
[1749502930331,0.02874886,156.84,156.82,7.57476937]
[1749502930731,0.02874886,156.84,156.82,13.94776937]
[1749502931745,0.02874886,156.84,156.83,6.3729]
[1749502933238,0.02874886,156.84,156.82,13.94786937]
[1749502935239,0.02874886,156.84,156.8,401.0609853]
[1749502935434,0.02874886,156.84,156.82,7.57476937]
[1749502935836,6.3732,156.83,156.82,7.57476937]
[1749502936440,6.3732,156.83,156.82,41.31476937]
[1749502937144,6.3732,156.83,156.82,33.74]
[1749502937344,6.3732,156.83,156.82,7.57476937]
[1749502937537,6.3732,156.83,156.82,41.31476937]
[1749502939746,6.3732,156.83,156.82,7.57476937]
[1749502940046,6.3732,156.83,156.82,41.31476937]
[1749502941940,6.3737,156.81,156.8,374.87575467]
[1749502942244,6.3737,156.81,156.8,401.0409853]
[1749502943544,6.3734,156.82,156.8,401.0409853]
[1749502944248,6.3734,156.82,156.8,414.98985467]
[1749502944846,10.7129,156.83,156.8,414.98985467]
[1749502945246,10.7129,156.83,156.81,6.3736]
[1749502945449,4.3399,156.83,156.81,6.3736]
[1749502945949,4.3399,156.83,156.8,414.98965467]
[1749502946450,10.713,156.83,156.8,414.98965467]
[1749502946852,4.3399,156.83,156.81,6.3736]
[1749502947956,10.7128,156.83,156.81,6.3736]
[1749502948146,10.7128,156.83,156.8,408.61575467]
[1749502949351,10.7128,156.83,156.81,6.3735]
[1749502949852,4.3399,156.83,156.81,6.3735]
[1749502950050,6.40134886,156.84,156.8,401.0409853]
[1749502950051,0.02874886,156.84,156.8,401.0409853]
[1749502950252,0.02874886,156.84,156.82,7.57476937]
[1749502950554,0.02874886,156.84,156.82,13.94796937]
[1749502951154,0.02874886,156.84,156.81,6.3735]
[1749502951355,0.02874886,156.84,156.82,7.57476937]
[1749502952656,0.02874886,156.84,156.82,13.94786937]
[1749502952854,0.02874886,156.84,156.82,7.57476937]
[1749502953159,0.02874886,156.84,156.8,401.0409853]
[1749502953354,0.02874886,156.84,156.83,7.57476937]
[1749502953556,0.02874886,156.84,156.83,41.23476937]
[1749502954758,0.02874886,156.84,156.83,7.57476937]
[1749502954953,0.02874886,156.84,156.83,40.0329]
[1749502955154,0.02874886,156.84,156.83,33.66]
[1749502955658,0.02874886,156.84,156.83,40.0329]
[1749502962766,0.02874886,156.84,156.83,47.60766937]
[1749502963264,0.02874886,156.84,156.83,40.0329]
[1749502963464,0.02874886,156.84,156.83,47.60766937]
[1749502968167,8.6912266,156.91,156.85,7.57476937]
[1749502968368,6.46908557,156.9,156.87,7.57476937]
[1749502968558,6.46908557,156.89,156.88,33.66]
[1749502969169,6.3708,156.88,156.87,33.70804908]
[1749502969366,6.4786524,156.88,156.87,33.66]
[1749502969566,6.47868028,156.88,156.87,33.66]
[1749502969762,10.49875192,156.88,156.87,33.66]
[1749502969962,12.84943186,156.88,156.87,33.66]
[1749502970569,6.47863186,156.88,156.87,33.66]
[1749502971064,6.48109643,156.88,156.87,33.66]
[1749502971264,6.3705,156.89,156.87,33.66]
[1749502971464,8.6912266,156.91,156.88,7.57476937]
[1749502971665,8.6912266,156.91,156.87,33.66]
[1749502971666,2.73711092,156.91,156.9,7.57476937]
[1749502971870,9.21773997,156.91,156.9,7.57476937]
[1749502972375,9.21931914,156.91,156.9,7.57476937]
[1749502972673,15.58912846,156.91,156.9,7.57476937]
[1749502972872,15.58905996,156.91,156.9,7.57476937]
[1749502973174,15.58905478,156.91,156.88,6.3706]
[1749502973368,2.35168814,156.9,156.87,33.66]
[1749502973573,2.73711092,156.91,156.89,7.57476937]
[1749502973770,6.47534586,156.9,156.89,6.3704]
[1749502974166,6.47534586,156.9,156.89,13.94516937]
[1749502974561,4.12624234,156.9,156.89,13.94516937]
[1749502974771,4.12892795,156.9,156.89,6.3704]
[1749502975071,6.48073693,156.9,156.89,13.94516937]
[1749502975375,2.35182255,156.9,156.89,13.94516937]
[1749502975569,2.35182255,156.9,156.88,6.3707]
[1749502975873,2.73711092,156.91,156.89,7.57476937]
[1749502976077,6.47699083,156.9,156.89,7.57476937]
[1749502976265,2.35033357,156.9,156.89,13.94516937]
[1749502976574,2.3503405,156.9,156.89,7.57476937]
[1749502976777,2.35037859,156.9,156.89,7.57476937]
[1749502976963,2.35037782,156.9,156.89,7.57476937]
[1749502977666,9.10671092,156.91,156.89,7.57476937]
[1749502977865,2.73711092,156.91,156.89,13.94506937]
[1749502978064,2.34929395,156.9,156.89,13.94506937]
[1749502978268,2.34923859,156.9,156.89,13.94506937]
[1749502978671,2.73711092,156.91,156.86,0.04248968]
[1749502978868,2.34912009,156.9,156.86,0.04248968]
[1749502979173,6.47396523,156.9,156.87,34.1]
[1749502979371,6.47396523,156.9,156.86,0.04248968]
[1749502979372,6.3712,156.87,156.86,0.04248968]
[1749502979563,8.73347775,156.87,156.86,34.14248968]
[1749502979877,6.3712,156.87,156.86,34.14248968]
[1749502980974,2.36324747,156.87,156.86,34.14248968]
[1749502981176,2.36324229,156.9,156.86,34.14248968]
[1749502981370,6.52011051,156.89,156.86,34.14248968]
[1749502981571,12.89131051,156.88,156.86,34.14248968]
[1749502981772,6.3712,156.88,156.86,34.14248968]
[1749502984377,6.3705,156.89,156.86,34.14248968]
[1749502984577,2.35291339,156.88,156.86,34.14248968]
[1749502984765,6.3705,156.89,156.86,34.14248968]
[1749502984969,2.35203984,156.88,156.86,40.51398968]
[1749502985378,6.3705,156.89,156.86,40.51398968]
[1749502986275,6.3709,156.88,156.86,40.51398968]
[1749502987575,6.3706,156.89,156.86,40.51398968]
[1749502987783,6.3706,156.89,156.87,6.3712]
[1749502987968,2.73711092,156.91,156.86,34.14248968]
[1749502988170,6.48285367,156.9,156.86,34.14248968]
[1749502988370,2.3515533,156.89,156.86,34.14248968]
[1749502988672,2.73711092,156.91,156.86,34.14248968]
[1749502988868,6.3705,156.89,156.86,40.51408968]
[1749502989071,2.73711092,156.91,156.86,40.51408968]